[Event "Late-Titled-Tuesday-Blitz-September-19-2023"]
[Site "Chess.com"]
[Date "2023.09.19"]
[Round "10"]
[White "Eloist"]
[Black "sergeikim"]
[Result "1-0"]
[WhiteElo "2500"]
[BlackElo "2584"]
[TimeControl "180+1"]
[EndTime "15:55:49 PDT"]
[Termination "Eloist won by checkmate"]

1. e4 {[%clk 0:02:55.7]} 1... e5 {[%clk 0:03:00]} 2. Bc4 {[%clk 0:02:54.8]} 2...
Nf6 {[%clk 0:02:57.8]} 3. d3 {[%clk 0:02:55]} 3... Bc5 {[%clk 0:02:57.1]} 4. Nf3
{[%clk 0:02:55.3]} 4... Nc6 {[%clk 0:02:57.6]} 5. O-O {[%clk 0:02:55.5]} 5... d6
{[%clk 0:02:58]} 6. c3 {[%clk 0:02:54.9]} 6... a6 {[%clk 0:02:58.4]} 7. Bb3
{[%clk 0:02:52.1]} 7... Ba7 {[%clk 0:02:58.5]} 8. Nbd2 {[%clk 0:02:51]} 8... O-O
{[%clk 0:02:58.3]} 9. h3 {[%clk 0:02:46.9]} 9... Nh5 {[%clk 0:02:58.1]} 10. Nc4
{[%clk 0:02:39.4]} 10... Qf6 {[%clk 0:02:43.5]} 11. Ne3 {[%clk 0:02:24.1]} 11...
Nf4 {[%clk 0:02:42.6]} 12. Nd5 {[%clk 0:02:21.1]} 12... Nxd5 {[%clk 0:02:41.5]}
13. exd5 {[%clk 0:02:17.2]} 13... Nd8 {[%clk 0:02:40.6]} 14. d4 {[%clk
0:02:06.5]} 14... e4 {[%clk 0:02:36.9]} 15. Nd2 {[%clk 0:01:58.6]} 15... Qg6
{[%clk 0:02:36.4]} 16. Kh2 {[%clk 0:01:49.5]} 16... f5 {[%clk 0:02:29.3]} 17. f4
{[%clk 0:01:46.6]} 17... Nf7 {[%clk 0:02:25.1]} 18. Nc4 {[%clk 0:01:41.5]} 18...
Nh6 {[%clk 0:02:22.4]} 19. Ne3 {[%clk 0:01:30.5]} 19... Kh8 {[%clk 0:02:21.7]}
20. Bd2 {[%clk 0:01:28.2]} 20... c6 {[%clk 0:02:17.7]} 21. Nc4 {[%clk
0:01:18.4]} 21... Bd7 {[%clk 0:02:04.3]} 22. dxc6 {[%clk 0:01:12.8]} 22... bxc6
{[%clk 0:01:56.6]} 23. Be3 {[%clk 0:01:06.2]} 23... Rab8 {[%clk 0:01:53.2]} 24.
Qd2 {[%clk 0:01:01.5]} 24... Rf6 {[%clk 0:01:43.8]} 25. d5 {[%clk 0:00:58.2]}
25... Bxe3 {[%clk 0:01:38.1]} 26. Nxe3 {[%clk 0:00:54.5]} 26... c5 {[%clk
0:01:37.9]} 27. Bc4 {[%clk 0:00:48.3]} 27... a5 {[%clk 0:01:37.7]} 28. b3 {[%clk
0:00:40.3]} 28... Rff8 {[%clk 0:01:35]} 29. a3 {[%clk 0:00:40.3]} 29... Qf6
{[%clk 0:01:30]} 30. b4 {[%clk 0:00:36.8]} 30... axb4 {[%clk 0:01:26.5]} 31.
axb4 {[%clk 0:00:37.7]} 31... cxb4 {[%clk 0:01:14.9]} 32. cxb4 {[%clk
0:00:38.6]} 32... Ra8 {[%clk 0:01:15.1]} 33. Ra5 {[%clk 0:00:36.4]} 33... Qh4
{[%clk 0:01:02.5]} 34. Qf2 {[%clk 0:00:34.8]} 34... Qf6 {[%clk 0:00:58.2]} 35.
Qa2 {[%clk 0:00:27.6]} 35... Rad8 {[%clk 0:00:50.6]} 36. Ra7 {[%clk 0:00:25.9]}
36... Qd4 {[%clk 0:00:47.1]} 37. Ra3 {[%clk 0:00:19.6]} 37... Rb8 {[%clk
0:00:43.6]} 38. Rd1 {[%clk 0:00:19.2]} 38... Qf6 {[%clk 0:00:42.8]} 39. Ra7
{[%clk 0:00:18.8]} 39... Be8 {[%clk 0:00:37.9]} 40. Rb1 {[%clk 0:00:16.4]} 40...
Qh4 {[%clk 0:00:36.4]} 41. g3 {[%clk 0:00:13.7]} 41... Qf6 {[%clk 0:00:35.7]}
42. Kg2 {[%clk 0:00:13.5]} 42... Qd4 {[%clk 0:00:34]} 43. Qa3 {[%clk 0:00:13.1]}
43... Bb5 {[%clk 0:00:30.4]} 44. Rd1 {[%clk 0:00:12.2]} 44... Qb6 {[%clk
0:00:28.9]} 45. Bxb5 {[%clk 0:00:12]} 45... Qxb5 {[%clk 0:00:28.9]} 46. Qc3
{[%clk 0:00:11.6]} 46... Qe2+ {[%clk 0:00:28.4]} 47. Kg1 {[%clk 0:00:08.4]}
47... Rbc8 {[%clk 0:00:28.4]} 48. Qxg7# {[%clk 0:00:07.6]} 1-0

[Event "Late-Titled-Tuesday-Blitz-September-19-2023"]
[Site "Chess.com"]
[Date "2023.09.19"]
[Round "10"]
[White "SEBAZZANO"]
[Black "jinxy2009"]
[Result "0-1"]
[WhiteElo "2203"]
[BlackElo "2317"]
[TimeControl "180+1"]
[EndTime "15:55:54 PDT"]
[Termination "jinxy2009 won by resignation"]

1. d4 {[%clk 0:03:00]} 1... d5 {[%clk 0:02:55.7]} 2. Bf4 {[%clk 0:02:59.1]} 2...
Nf6 {[%clk 0:02:52.8]} 3. e3 {[%clk 0:02:58.2]} 3... e6 {[%clk 0:02:53.2]} 4.
Nd2 {[%clk 0:02:56.4]} 4... Bd6 {[%clk 0:02:53.6]} 5. Bg3 {[%clk 0:02:56.3]}
5... O-O {[%clk 0:02:52.5]} 6. Ngf3 {[%clk 0:02:55.7]} 6... c5 {[%clk
0:02:52.3]} 7. c3 {[%clk 0:02:55.2]} 7... Qc7 {[%clk 0:02:52.2]} 8. Bd3 {[%clk
0:02:45]} 8... Nbd7 {[%clk 0:02:50.9]} 9. O-O {[%clk 0:02:43.7]} 9... e5 {[%clk
0:02:48.5]} 10. dxe5 {[%clk 0:02:44.6]} 10... Nxe5 {[%clk 0:02:48.9]} 11. Nxe5
{[%clk 0:02:44.8]} 11... Bxe5 {[%clk 0:02:49.8]} 12. Bxe5 {[%clk 0:02:45]} 12...
Qxe5 {[%clk 0:02:50.7]} 13. Nf3 {[%clk 0:02:43.9]} 13... Qe7 {[%clk 0:02:50.2]}
14. h3 {[%clk 0:02:42.8]} 14... Bd7 {[%clk 0:02:50]} 15. Qc2 {[%clk 0:02:39.6]}
15... Rfe8 {[%clk 0:02:49.3]} 16. a4 {[%clk 0:02:27.4]} 16... Rad8 {[%clk
0:02:48.5]} 17. Bb5 {[%clk 0:02:25.8]} 17... a6 {[%clk 0:02:35.6]} 18. Bxd7
{[%clk 0:02:25]} 18... Rxd7 {[%clk 0:02:35.9]} 19. Rfd1 {[%clk 0:02:11.6]} 19...
b6 {[%clk 0:02:30.4]} 20. Qd3 {[%clk 0:01:58.9]} 20... a5 {[%clk 0:02:25.3]} 21.
Rab1 {[%clk 0:01:55.3]} 21... h6 {[%clk 0:02:24.1]} 22. Qb5 {[%clk 0:01:52]}
22... Qe6 {[%clk 0:02:20.6]} 23. b4 {[%clk 0:01:49.7]} 23... Ne4 {[%clk
0:01:49.5]} 24. Rbc1 {[%clk 0:01:23.9]} 24... axb4 {[%clk 0:01:16.7]} 25. cxb4
{[%clk 0:01:23.1]} 25... c4 {[%clk 0:01:13.6]} 26. Nd4 {[%clk 0:01:17.6]} 26...
Qe7 {[%clk 0:01:01.2]} 27. Qxb6 {[%clk 0:00:49.3]} 27... Rd6 {[%clk 0:00:42.2]}
28. Qb5 {[%clk 0:00:36.3]} 28... Rg6 {[%clk 0:00:29.2]} 29. Qxd5 {[%clk
0:00:18.9]} 29... Nxf2 {[%clk 0:00:15.9]} 30. Kxf2 {[%clk 0:00:16.2]} 30...
Qxe3+ {[%clk 0:00:16]} 31. Kf1 {[%clk 0:00:15.3]} 31... Rf6+ {[%clk 0:00:14.5]}
32. Nf3 {[%clk 0:00:14.6]} 32... Re4 {[%clk 0:00:13.7]} 33. Qd8+ {[%clk
0:00:13.5]} 33... Kh7 {[%clk 0:00:13.4]} 34. Qd2 {[%clk 0:00:13.7]} 34... Rxf3+
{[%clk 0:00:10.3]} 35. gxf3 {[%clk 0:00:14.6]} 35... Qxf3+ {[%clk 0:00:11.2]}
36. Qf2 {[%clk 0:00:14.1]} 36... Qxh3+ {[%clk 0:00:11.4]} 37. Qg2 {[%clk
0:00:13.9]} 37... Rf4+ {[%clk 0:00:11.8]} 38. Kg1 {[%clk 0:00:13.5]} 38... Rg4
{[%clk 0:00:12.4]} 39. Rd2 {[%clk 0:00:12.2]} 39... Rxg2+ {[%clk 0:00:12.4]} 40.
Rxg2 {[%clk 0:00:13.1]} 40... Qe3+ {[%clk 0:00:12.7]} 41. Kh2 {[%clk 0:00:12.2]}
41... Qxc1 {[%clk 0:00:13.6]} 0-1

[Event "Late-Titled-Tuesday-Blitz-September-19-2023"]
[Site "Chess.com"]
[Date "2023.09.19"]
[Round "10"]
[White "GlavkonVVS"]
[Black "YEIKO2017"]
[Result "1-0"]
[WhiteElo "2607"]
[BlackElo "2471"]
[TimeControl "180+1"]
[EndTime "15:55:59 PDT"]
[Termination "GlavkonVVS won by resignation"]

1. Nf3 {[%clk 0:03:00.9]} 1... c5 {[%clk 0:02:57.4]} 2. c4 {[%clk 0:03:01]} 2...
g6 {[%clk 0:02:56.7]} 3. Nc3 {[%clk 0:03:01.3]} 3... Bg7 {[%clk 0:02:57.2]} 4.
g3 {[%clk 0:03:02]} 4... Nf6 {[%clk 0:02:57.6]} 5. Bg2 {[%clk 0:03:02.6]} 5...
O-O {[%clk 0:02:58]} 6. d3 {[%clk 0:03:03.3]} 6... Nc6 {[%clk 0:02:58]} 7. a3
{[%clk 0:03:03.9]} 7... d5 {[%clk 0:02:56.6]} 8. Rb1 {[%clk 0:03:04.1]} 8...
dxc4 {[%clk 0:02:55.7]} 9. dxc4 {[%clk 0:03:04.1]} 9... Bf5 {[%clk 0:02:55.4]}
10. Ra1 {[%clk 0:03:03.4]} 10... Qxd1+ {[%clk 0:02:51.6]} 11. Nxd1 {[%clk
0:03:03.3]} 11... Nd4 {[%clk 0:02:24.7]} 12. Nxd4 {[%clk 0:03:01.8]} 12... cxd4
{[%clk 0:02:23.5]} 13. Bxb7 {[%clk 0:02:58.6]} 13... Rab8 {[%clk 0:02:19.2]} 14.
Ba6 {[%clk 0:02:49]} 14... d3 {[%clk 0:02:10.3]} 15. Ne3 {[%clk 0:02:40.7]}
15... Be4 {[%clk 0:02:09]} 16. f3 {[%clk 0:02:40.8]} 16... Bc6 {[%clk
0:02:06.7]} 17. exd3 {[%clk 0:02:24.1]} 17... Bxf3 {[%clk 0:02:05.7]} 18. Rf1
{[%clk 0:02:24.6]} 18... Bc6 {[%clk 0:02:01.5]} 19. b4 {[%clk 0:01:59.6]} 19...
Ne4 {[%clk 0:01:46.8]} 20. Ra2 {[%clk 0:01:51.3]} 20... Nc3 {[%clk 0:01:11.9]}
21. Rd2 {[%clk 0:01:50.8]} 21... Rfd8 {[%clk 0:01:01.1]} 22. b5 {[%clk
0:01:37.4]} 22... Ba8 {[%clk 0:00:55.4]} 23. Bb2 {[%clk 0:01:36.8]} 23... Ne4
{[%clk 0:00:48.1]} 24. Bxg7 {[%clk 0:01:18.4]} 24... Nxd2 {[%clk 0:00:46.6]} 25.
Kxd2 {[%clk 0:01:18.7]} 25... Kxg7 {[%clk 0:00:45.8]} 26. Kc3 {[%clk 0:01:18.2]}
26... e5 {[%clk 0:00:43.5]} 27. c5 {[%clk 0:01:10.1]} 27... f5 {[%clk
0:00:37.5]} 28. Nc4 {[%clk 0:01:09.1]} 28... e4 {[%clk 0:00:35.1]} 29. d4 {[%clk
0:01:08.4]} 29... Bd5 {[%clk 0:00:32.6]} 30. Ne3 {[%clk 0:01:07.6]} 30... Bf7
{[%clk 0:00:31.3]} 31. c6 {[%clk 0:01:06]} 31... Re8 {[%clk 0:00:27.4]} 32. d5
{[%clk 0:01:01.2]} 32... Rbd8 {[%clk 0:00:23.3]} 33. Rd1 {[%clk 0:00:59.1]}
33... Kf6 {[%clk 0:00:19.6]} 34. Kd4 {[%clk 0:00:57.8]} 34... g5 {[%clk
0:00:17.8]} 35. c7 {[%clk 0:00:54.2]} 35... Rc8 {[%clk 0:00:17]} 36. Bxc8 {[%clk
0:00:53.2]} 36... Rxc8 {[%clk 0:00:17.6]} 37. Rc1 {[%clk 0:00:51.1]} 37... f4
{[%clk 0:00:16.7]} 38. Rc6+ {[%clk 0:00:50.6]} 38... Ke7 {[%clk 0:00:14.1]} 39.
gxf4 {[%clk 0:00:50.4]} 39... gxf4 {[%clk 0:00:13.4]} 40. Nf5+ {[%clk
0:00:49.5]} 40... Kd7 {[%clk 0:00:13.5]} 41. Nd6 {[%clk 0:00:46.2]} 41... Bg6
{[%clk 0:00:11.9]} 42. Nxe4 {[%clk 0:00:44.3]} 42... Rxc7 {[%clk 0:00:12.4]} 43.
Nc5+ {[%clk 0:00:42.6]} 43... Kc8 {[%clk 0:00:08.7]} 44. Ne6 {[%clk 0:00:40.9]}
44... Rxc6 {[%clk 0:00:07.9]} 45. bxc6 {[%clk 0:00:41.2]} 45... f3 {[%clk
0:00:08.8]} 46. Ke3 {[%clk 0:00:41.5]} 46... Be4 {[%clk 0:00:08.8]} 47. Nf4
{[%clk 0:00:39.2]} 47... Kc7 {[%clk 0:00:06.4]} 48. Ne6+ {[%clk 0:00:27.7]}
48... Kd6 {[%clk 0:00:06.1]} 49. c7 {[%clk 0:00:27.3]} 49... Kd7 {[%clk
0:00:05.6]} 50. Nc5+ {[%clk 0:00:27.5]} 1-0

[Event "Late-Titled-Tuesday-Blitz-September-19-2023"]
[Site "Chess.com"]
[Date "2023.09.19"]
[Round "10"]
[White "Firouzja2003"]
[Black "nihalsarin"]
[Result "0-1"]
[WhiteElo "3068"]
[BlackElo "3140"]
[TimeControl "180+1"]
[EndTime "15:56:04 PDT"]
[Termination "nihalsarin won on time"]

1. e4 {[%clk 0:03:00.9]} 1... c6 {[%clk 0:02:53.4]} 2. d4 {[%clk 0:02:58.7]}
2... d5 {[%clk 0:02:53.6]} 3. e5 {[%clk 0:02:59.5]} 3... Bf5 {[%clk 0:02:50.3]}
4. Nf3 {[%clk 0:02:59.9]} 4... e6 {[%clk 0:02:50.6]} 5. Be2 {[%clk 0:03:00.6]}
5... Nd7 {[%clk 0:02:48.9]} 6. O-O {[%clk 0:02:57.1]} 6... Bg6 {[%clk
0:02:49.3]} 7. a4 {[%clk 0:02:48.1]} 7... Nh6 {[%clk 0:02:41.7]} 8. a5 {[%clk
0:02:45.5]} 8... a6 {[%clk 0:02:40.1]} 9. Nbd2 {[%clk 0:02:28.8]} 9... Be7
{[%clk 0:02:35]} 10. c4 {[%clk 0:02:21.6]} 10... O-O {[%clk 0:02:33.4]} 11. Qb3
{[%clk 0:02:05.6]} 11... Rb8 {[%clk 0:02:29.6]} 12. cxd5 {[%clk 0:01:56]} 12...
cxd5 {[%clk 0:02:27.3]} 13. Re1 {[%clk 0:01:55.8]} 13... Nf5 {[%clk 0:02:18.5]}
14. h3 {[%clk 0:01:44.7]} 14... h6 {[%clk 0:02:07.9]} 15. Bf1 {[%clk 0:01:34.5]}
15... b6 {[%clk 0:02:03.4]} 16. axb6 {[%clk 0:01:28.5]} 16... Rxb6 {[%clk
0:02:01.9]} 17. Qd1 {[%clk 0:01:16.8]} 17... Rb4 {[%clk 0:01:53.4]} 18. Ra4
{[%clk 0:00:59.7]} 18... Qb6 {[%clk 0:01:12]} 19. Rxa6 {[%clk 0:00:58.7]} 19...
Qb7 {[%clk 0:01:12.6]} 20. Ra4 {[%clk 0:00:49.6]} 20... Ra8 {[%clk 0:01:12.1]}
21. Rxb4 {[%clk 0:00:25]} 21... Qxb4 {[%clk 0:01:11.8]} 22. Nb3 {[%clk
0:00:24.6]} 22... Rb8 {[%clk 0:01:06.9]} 23. Na1 {[%clk 0:00:25]} 23... Nh4
{[%clk 0:00:48.8]} 24. Nxh4 {[%clk 0:00:19.3]} 24... Bxh4 {[%clk 0:00:49.7]} 25.
Re3 {[%clk 0:00:19.4]} 25... Rc8 {[%clk 0:00:46.1]} 26. Ra3 {[%clk 0:00:08.8]}
26... Be4 {[%clk 0:00:15.9]} 27. g3 {[%clk 0:00:08.6]} 27... Bd8 {[%clk
0:00:14.7]} 28. Qd2 {[%clk 0:00:06.4]} 28... Qb6 {[%clk 0:00:08.3]} 29. Rc3
{[%clk 0:00:06.9]} 29... Ra8 {[%clk 0:00:04.9]} 30. Nb3 {[%clk 0:00:07.3]} 30...
Bg5 {[%clk 0:00:05.7]} 31. f4 {[%clk 0:00:07.4]} 31... Be7 {[%clk 0:00:06.1]}
32. Qf2 {[%clk 0:00:04.7]} 32... Bb4 {[%clk 0:00:05.6]} 33. Re3 {[%clk
0:00:05.4]} 33... Rc8 {[%clk 0:00:05.5]} 34. Bd2 {[%clk 0:00:04.8]} 34... Rc2
{[%clk 0:00:05.9]} 35. Qe1 {[%clk 0:00:02.7]} 35... Bxd2 {[%clk 0:00:06.3]} 36.
Nxd2 {[%clk 0:00:03.6]} 36... Qxd4 {[%clk 0:00:06.8]} 37. Nxe4 {[%clk
0:00:04.1]} 37... dxe4 {[%clk 0:00:06.8]} 38. Kh1 {[%clk 0:00:04.6]} 38... Nc5
{[%clk 0:00:06.6]} 39. Rc3 {[%clk 0:00:04.1]} 39... Nd3 {[%clk 0:00:05.6]} 40.
Bxd3 {[%clk 0:00:01.4]} 40... exd3 {[%clk 0:00:06.5]} 0-1

[Event "Late-Titled-Tuesday-Blitz-September-19-2023"]
[Site "Chess.com"]
[Date "2023.09.19"]
[Round "10"]
[White "Hrant_ChessMood"]
[Black "Parhamov"]
[Result "0-1"]
[WhiteElo "2905"]
[BlackElo "3032"]
[TimeControl "180+1"]
[EndTime "15:56:05 PDT"]
[Termination "Parhamov won on time"]

1. d4 {[%clk 0:03:00.9]} 1... Nf6 {[%clk 0:02:55.9]} 2. c4 {[%clk 0:03:01]} 2...
e6 {[%clk 0:02:55.1]} 3. Nf3 {[%clk 0:03:01.3]} 3... Bb4+ {[%clk 0:02:53.6]} 4.
Nc3 {[%clk 0:02:57.5]} 4... O-O {[%clk 0:02:50.3]} 5. Bg5 {[%clk 0:02:56.4]}
5... h6 {[%clk 0:02:49.6]} 6. Bh4 {[%clk 0:02:56]} 6... Bxc3+ {[%clk 0:02:44.7]}
7. bxc3 {[%clk 0:02:55.5]} 7... d6 {[%clk 0:02:43.4]} 8. Nd2 {[%clk 0:02:51.5]}
8... e5 {[%clk 0:02:36.2]} 9. e4 {[%clk 0:02:47.3]} 9... c5 {[%clk 0:02:23.2]}
10. Bd3 {[%clk 0:02:43.9]} 10... Re8 {[%clk 0:02:14.8]} 11. O-O {[%clk
0:02:43.2]} 11... g5 {[%clk 0:02:10.8]} 12. Bg3 {[%clk 0:02:42.6]} 12... Nc6
{[%clk 0:02:10.8]} 13. d5 {[%clk 0:02:31.1]} 13... Ne7 {[%clk 0:02:09.9]} 14.
Re1 {[%clk 0:02:32]} 14... Ng6 {[%clk 0:02:04.6]} 15. Nf1 {[%clk 0:02:31.4]}
15... h5 {[%clk 0:02:01.3]} 16. f3 {[%clk 0:02:26.2]} 16... h4 {[%clk
0:01:55.6]} 17. Bf2 {[%clk 0:02:26.2]} 17... Nf4 {[%clk 0:01:55]} 18. Ne3 {[%clk
0:02:24.4]} 18... N6h5 {[%clk 0:01:51.5]} 19. Bf1 {[%clk 0:02:19.3]} 19... Qf6
{[%clk 0:01:47.1]} 20. Ng4 {[%clk 0:02:14.5]} 20... Qg7 {[%clk 0:01:43.7]} 21.
Rb1 {[%clk 0:02:07.7]} 21... f5 {[%clk 0:01:37.1]} 22. exf5 {[%clk 0:02:07.1]}
22... Bxf5 {[%clk 0:01:37.7]} 23. Rb2 {[%clk 0:02:05.7]} 23... Rf8 {[%clk
0:01:24]} 24. g3 {[%clk 0:02:01.5]} 24... Ng6 {[%clk 0:01:18.2]} 25. Ne3 {[%clk
0:01:57.9]} 25... Bc8 {[%clk 0:01:17.4]} 26. Bd3 {[%clk 0:01:57.5]} 26... Rf7
{[%clk 0:01:09.5]} 27. Be4 {[%clk 0:01:53.2]} 27... hxg3 {[%clk 0:01:02]} 28.
hxg3 {[%clk 0:01:52.8]} 28... Ne7 {[%clk 0:01:00.8]} 29. Ng4 {[%clk 0:01:42.8]}
29... b6 {[%clk 0:00:56.6]} 30. Kg2 {[%clk 0:01:42.9]} 30... Bxg4 {[%clk
0:00:55.8]} 31. fxg4 {[%clk 0:01:41]} 31... Nf6 {[%clk 0:00:56.1]} 32. Bb1
{[%clk 0:01:37.7]} 32... Raf8 {[%clk 0:00:55.7]} 33. Be3 {[%clk 0:01:34.6]}
33... e4 {[%clk 0:00:52.7]} 34. Rf2 {[%clk 0:01:31.1]} 34... b5 {[%clk
0:00:52.3]} 35. Ref1 {[%clk 0:01:01.9]} 35... bxc4 {[%clk 0:00:50.3]} 36. Qd2
{[%clk 0:00:23.8]} 36... Nexd5 {[%clk 0:00:41.2]} 37. Bxg5 {[%clk 0:00:19.5]}
37... e3 {[%clk 0:00:40.6]} 38. Bxe3 {[%clk 0:00:19.7]} 38... Nxe3+ {[%clk
0:00:40.5]} 39. Qxe3 {[%clk 0:00:17]} 39... Nxg4 {[%clk 0:00:40.2]} 40. Qe6
{[%clk 0:00:13.3]} 40... Nxf2 {[%clk 0:00:39.6]} 41. Rxf2 {[%clk 0:00:14.2]}
41... Qe5 {[%clk 0:00:27.8]} 42. Bf5 {[%clk 0:00:05.1]} 42... Re8 {[%clk
0:00:19.4]} 43. Qg6+ {[%clk 0:00:03.1]} 43... Rg7 {[%clk 0:00:19.1]} 44. Qg5
{[%clk 0:00:02.8]} 44... Rxg5 {[%clk 0:00:18.7]} 0-1

[Event "Late-Titled-Tuesday-Blitz-September-19-2023"]
[Site "Chess.com"]
[Date "2023.09.19"]
[Round "10"]
[White "VitaliyBernadskiy"]
[Black "kuli4ik"]
[Result "1-0"]
[WhiteElo "2883"]
[BlackElo "2954"]
[TimeControl "180+1"]
[EndTime "15:56:17 PDT"]
[Termination "VitaliyBernadskiy won by resignation"]

1. c4 {[%clk 0:03:00.9]} 1... g6 {[%clk 0:02:54]} 2. g3 {[%clk 0:03:01]} 2...
Bg7 {[%clk 0:02:52.8]} 3. Bg2 {[%clk 0:03:01.9]} 3... d6 {[%clk 0:02:52.7]} 4.
Nf3 {[%clk 0:03:02.2]} 4... e5 {[%clk 0:02:52]} 5. O-O {[%clk 0:03:02.8]} 5...
Ne7 {[%clk 0:02:52.6]} 6. Nc3 {[%clk 0:03:03.1]} 6... O-O {[%clk 0:02:53]} 7. b4
{[%clk 0:03:02.1]} 7... e4 {[%clk 0:02:51.6]} 8. Ne1 {[%clk 0:03:01.8]} 8... f5
{[%clk 0:02:51.6]} 9. Bb2 {[%clk 0:02:58.7]} 9... Nbc6 {[%clk 0:02:49.6]} 10. b5
{[%clk 0:02:52.6]} 10... Ne5 {[%clk 0:02:49.6]} 11. d3 {[%clk 0:02:52.9]} 11...
a6 {[%clk 0:02:47.7]} 12. a4 {[%clk 0:02:49.9]} 12... Be6 {[%clk 0:02:39]} 13.
Nc2 {[%clk 0:02:39.8]} 13... Bf7 {[%clk 0:02:37.6]} 14. Ne3 {[%clk 0:02:32.3]}
14... exd3 {[%clk 0:02:32]} 15. exd3 {[%clk 0:02:33.2]} 15... Rb8 {[%clk
0:02:31.2]} 16. Qc2 {[%clk 0:02:19.5]} 16... c6 {[%clk 0:02:28.6]} 17. Rfe1
{[%clk 0:02:12]} 17... Re8 {[%clk 0:02:20.2]} 18. Rad1 {[%clk 0:02:06]} 18...
axb5 {[%clk 0:02:17.7]} 19. axb5 {[%clk 0:02:04.7]} 19... Qd7 {[%clk 0:02:16.9]}
20. f4 {[%clk 0:01:59.8]} 20... Ng4 {[%clk 0:02:04.5]} 21. Nxg4 {[%clk
0:01:59.9]} 21... fxg4 {[%clk 0:02:02.4]} 22. Ne4 {[%clk 0:02:00.3]} 22... d5
{[%clk 0:01:45.7]} 23. Bxg7 {[%clk 0:01:59.3]} 23... dxe4 {[%clk 0:01:45.4]} 24.
dxe4 {[%clk 0:01:57.1]} 24... Qe6 {[%clk 0:01:43.9]} 25. Be5 {[%clk 0:01:49.4]}
25... Rbc8 {[%clk 0:01:43.5]} 26. b6 {[%clk 0:01:42.4]} 26... Red8 {[%clk
0:01:41]} 27. c5 {[%clk 0:01:40.6]} 27... Qb3 {[%clk 0:01:37.8]} 28. Qxb3 {[%clk
0:01:34.1]} 28... Bxb3 {[%clk 0:01:38.7]} 29. Rd6 {[%clk 0:01:29.7]} 29... Ra8
{[%clk 0:01:38.1]} 30. Bf6 {[%clk 0:01:25.9]} 30... Kf7 {[%clk 0:01:37.9]} 31.
Bf1 {[%clk 0:01:22]} 31... Rxd6 {[%clk 0:01:35.4]} 32. cxd6 {[%clk 0:01:18.9]}
32... Kxf6 {[%clk 0:01:36.3]} 33. dxe7 {[%clk 0:01:08.5]} 33... Kxe7 {[%clk
0:01:37.2]} 34. Rb1 {[%clk 0:01:06.6]} 34... Ra3 {[%clk 0:01:34]} 35. Be2 {[%clk
0:01:04.4]} 35... h5 {[%clk 0:01:33]} 36. Kf2 {[%clk 0:01:04.7]} 36... Kd6
{[%clk 0:01:23.7]} 37. Rc1 {[%clk 0:01:02.8]} 37... Ra2 {[%clk 0:01:20]} 38. Ke3
{[%clk 0:01:01.5]} 38... Rb2 {[%clk 0:01:18.8]} 39. e5+ {[%clk 0:01:00.6]} 39...
Ke7 {[%clk 0:01:18.8]} 40. Bd3 {[%clk 0:00:53.7]} 40... Bf7 {[%clk 0:01:11.6]}
41. Rb1 {[%clk 0:00:48.8]} 41... Rxh2 {[%clk 0:01:10.6]} 42. Ba6 {[%clk
0:00:48.7]} 42... Rh3 {[%clk 0:00:19]} 43. Bxb7 {[%clk 0:00:48.2]} 43... Rxg3+
{[%clk 0:00:18.7]} 44. Kd4 {[%clk 0:00:48.2]} 44... Bd5 {[%clk 0:00:13.5]} 45.
Bc8 {[%clk 0:00:32.4]} 45... Rf3 {[%clk 0:00:13]} 46. b7 {[%clk 0:00:31.3]}
46... Rxf4+ {[%clk 0:00:13.5]} 47. Kc5 {[%clk 0:00:22.9]} 47... Rc4+ {[%clk
0:00:13.4]} 48. Kb6 {[%clk 0:00:23]} 48... Be4 {[%clk 0:00:11.5]} 49. b8=Q
{[%clk 0:00:21.5]} 49... Bxb1 {[%clk 0:00:11.1]} 50. Qd6+ {[%clk 0:00:22]} 50...
Ke8 {[%clk 0:00:11.1]} 51. Qe6+ {[%clk 0:00:21.4]} 51... Kf8 {[%clk 0:00:10.7]}
52. Qxc4 {[%clk 0:00:21.3]} 52... Bf5 {[%clk 0:00:10.1]} 53. Bxf5 {[%clk
0:00:20.5]} 53... gxf5 {[%clk 0:00:10]} 54. Kxc6 {[%clk 0:00:21.1]} 1-0